fUST/lending_fUST_20241028
["ID","MTS","AMOUNT","RATE_DAILY","PERIOD"]
[340901574,1730046088684,-570.26,0.00027671,30]
[340901575,1730046088709,-1041.16,0.00027671,30]
[340901576,1730046088733,-909.24,0.00027671,30]
[340901577,1730046088759,-500.0,0.00027671,30]
[340901578,1730046088784,-712.81,0.00027671,30]
[340901579,1730046088808,-1412.27,0.00027671,30]
[340901580,1730046088833,-1788.69,0.00027671,30]
[340901581,1730046088859,-720.31,0.00027671,30]
[340901582,1730046088883,-945.4,0.00027671,30]
[340901583,1730046088908,-500.0,0.00027671,30]
[340901584,1730046088932,-500.0,0.00027671,30]
[340901585,1730046088957,-653.89,0.00027671,30]
[340901586,1730046088981,-1548.3,0.00027671,30]
[340901587,1730046089006,-500.0,0.00027671,30]
[340901588,1730046089032,-500.0,0.00027671,30]
[340901589,1730046089058,-1846.63,0.00027671,30]
[340901590,1730046089082,-500.0,0.00027671,30]
[340901591,1730046089107,-511.57,0.00027671,30]
[340901592,1730046089132,-1161.98,0.00027671,30]
[340901593,1730046089157,-500.0,0.00027671,30]
[340901594,1730046089184,-500.0,0.00027671,30]
[340901595,1730046089213,-808.46,0.00027671,30]
[340901596,1730046089238,-897.0,0.00027671,30]
[340901597,1730046089264,-1191.74,0.00027671,30]
[340901598,1730046089290,-777.92,0.00027671,30]
[340901599,1730046089315,-500.0,0.00027671,30]
[340901600,1730046089341,-500.0,0.00027671,30]
[340901601,1730046089367,-2328.28,0.00027671,30]
[340901602,1730046089392,-1055.98,0.00027671,30]
[340901603,1730046089418,-500.0,0.00027671,30]
[340901604,1730046089443,-500.0,0.00027671,30]
[340901605,1730046089468,-1801.73,0.00027671,30]
[340901606,1730046089494,-669.35,0.00027671,30]
[340901607,1730046089523,-3087.86,0.00027671,30]
[340901608,1730046089551,-951.03,0.00027671,30]
[340901609,1730046089578,-1329.48,0.00027671,30]
[340901610,1730046089605,-649.77,0.00027671,30]
[340901611,1730046089631,-513.71,0.00027671,30]
[340901612,1730046089657,-500.0,0.00027671,30]
[340901613,1730046089682,-500.0,0.00027671,30]
[340901614,1730046089708,-1082.45,0.00027671,30]
[340901615,1730046089734,-2807.81,0.00027671,30]
[340901616,1730046089760,-1066.42,0.00027671,30]
[340901617,1730046089785,-500.0,0.00027671,30]
[340901618,1730046089811,-500.0,0.00027671,30]
[340901619,1730046089836,-927.22,0.00027671,30]
[340901620,1730046089964,-5482.08,0.00027671,30]
[340901621,1730046090022,-562.94,0.00027671,30]
[340901622,1730046090047,-1006.89,0.00027671,30]
[340901623,1730046090073,-348.66000001,0.00027671,30]
[340901624,1730046090099,-1369.37,0.00027671,30]
[340901625,1730046090124,-814.09,0.00027671,30]
[340901626,1730046090152,-500.0,0.00027671,30]
[340901627,1730046090179,-1205.44,0.00027671,30]
[340901628,1730046090207,-2966.53,0.00027671,30]
[340901629,1730046090234,-580.16,0.00027671,30]
[340901630,1730046090261,-2102.05,0.00027671,30]
[340901631,1730046090287,-908.39,0.00027671,30]
[340901632,1730046090313,-157.21192115,0.00027671,30]
[340901633,1730046090342,-500.0,0.00027671,30]
[340901634,1730046090368,-500.0,0.00027671,30]
[340901635,1730046090392,-500.0,0.00027671,30]
[340901636,1730046090420,-9951.14,0.00027671,30]
[340901637,1730046090446,-1621.81,0.00027671,30]
[340901638,1730046090472,-931.23,0.00027671,30]
[340901639,1730046090498,-500.0,0.00027671,30]
[340901640,1730046090524,-613.16396565,0.00027671,30]
[340901641,1730046090550,-1297.12,0.00027671,30]
[340901642,1730046090575,-500.0,0.00027671,30]
[340901643,1730046090600,-500.0,0.00027671,30]
[340901644,1730046090629,-848.89,0.00027671,30]
[340901645,1730046090657,-1653.1,0.00027671,30]
[340901646,1730046090683,-1793.09,0.00027671,30]
[340901647,1730046090709,-916.19,0.00027671,30]
[340901648,1730046090735,-2431.6,0.00027671,30]
[340901649,1730046090762,-1836.0,0.00027671,30]
[340901650,1730046090787,-873.66,0.00027671,30]
[340901651,1730046090813,-500.0,0.00027671,30]
[340901652,1730046090839,-620.5,0.00027671,30]
[340901653,1730046090866,-1667.35,0.00027671,30]
[340901654,1730046090893,-1075.5,0.00027671,30]
[340901655,1730046090926,-500.0,0.00027671,30]
[340901656,1730046090952,-1451.07,0.00027671,30]
[340901657,1730046090977,-1954.49,0.00027671,30]
[340901658,1730046091002,-6095.81,0.00027671,30]
[340901659,1730046091028,-500.0,0.00027671,30]
[340901660,1730046091054,-698.69,0.00027671,30]
[340901661,1730046091080,-778.1,0.00027671,30]
[340901662,1730046091107,-1654.97,0.00027671,30]
[340901663,1730046091133,-2746.61,0.00027671,30]
[340901664,1730046091160,-1229.42,0.00027671,30]
[340901665,1730046091186,-482.14852736,0.00027671,30]
[340901666,1730046091216,-1395.07,0.00027671,30]
[340901667,1730046091242,-500.0,0.00027671,30]
[340901668,1730046091268,-897.79,0.00027671,30]
[340901669,1730046091294,-500.0,0.00027671,30]
[340901670,1730046091319,-557.31,0.00027671,30]
[340901671,1730046091345,-719.28,0.00027671,30]
[340901672,1730046091371,-500.0,0.00027671,30]
[340901673,1730046091396,-722.3,0.00027671,30]
[340901674,1730046091422,-500.0,0.00027671,30]
[340901675,1730046091451,-500.0,0.00027671,30]
[340901676,1730046091494,-31392.8,0.00027671,30]
[340901677,1730046091525,-500.0,0.00027671,30]
[340901678,1730046091555,-615.71,0.00027671,30]
[340901679,1730046091583,-1645.21,0.00027671,30]
[340901680,1730046091611,-500.0,0.00027671,30]
[340901681,1730046091638,-709.72,0.00027671,30]
[340901682,1730046091668,-842.67,0.00027671,30]
[340901683,1730046091697,-3073.17,0.00027671,30]
[340901684,1730046091725,-1050.62,0.00027671,30]
[340901685,1730046091753,-500.0,0.00027671,30]
[340901686,1730046091780,-1277.77,0.00027671,30]
[340901687,1730046091807,-659.67,0.00027671,30]
[340901688,1730046091833,-810.39,0.00027671,30]
[340901689,1730046091860,-593.72,0.00027671,30]
[340901690,1730046091887,-795.67,0.00027671,30]
[340901691,1730046091914,-500.0,0.00027671,30]
[340901692,1730046091998,-500.0,0.00027671,30]
[340901693,1730046092025,-1081.77,0.00027671,30]
[340901694,1730046092050,-500.0,0.00027671,30]
[340901695,1730046092076,-1141.22,0.00027671,30]
[340901696,1730046092102,-500.0,0.00027671,30]
[340901697,1730046092126,-798.2,0.00027671,30]
[340901698,1730046092158,-632.44,0.00027671,30]
[340901699,1730046092183,-611.16677845,0.00027671,30]
[340901700,1730046092215,-500.0,0.00027671,30]
[340901701,1730046092245,-2219.19,0.00027671,30]
[340901702,1730046092272,-500.0,0.00027671,30]
[340901703,1730046092298,-717.21,0.00027671,30]
[340901704,1730046092325,-500.0,0.00027671,30]
[340901705,1730046092352,-500.0,0.00027671,30]
[340901706,1730046092379,-500.0,0.00027671,30]
[340901707,1730046092405,-500.0,0.00027671,30]
[340901708,1730046092432,-1620.78,0.00027671,30]
[340901709,1730046092458,-500.0,0.00027671,30]
[340901710,1730046092483,-1054.63,0.00027671,30]
[340901711,1730046092508,-984.29,0.00027671,30]
[340901712,1730046092534,-1099.54,0.00027671,30]
[340901713,1730046092561,-1257.44,0.00027671,30]
[340901714,1730046092587,-500.0,0.00027671,30]
[340901715,1730046092611,-793.9,0.00027671,30]
[340901716,1730046092636,-500.0,0.00027671,30]
[340901717,1730046092662,-500.0,0.00027671,30]
[340901718,1730046092688,-4538.49,0.00027671,30]
[340901719,1730046092715,-500.0,0.00027671,30]
[340901720,1730046092742,-1232.97,0.00027671,30]
[340901721,1730046092768,-3153.74,0.00027671,30]
[340901722,1730046092796,-500.0,0.00027945,30]
[340901723,1730046092824,-500.0,0.00027945,30]
[340901724,1730046092850,-933.79,0.00027945,30]
[340901725,1730046092882,-500.0,0.00027945,30]
[340901726,1730046092913,-500.0,0.00027945,30]
[340901727,1730046092941,-613.97,0.00027945,30]
[340901728,1730046092969,-500.0,0.00027945,30]
[340901729,1730046092995,-500.0,0.00027945,30]
[340901730,1730046093021,-791.2,0.00027945,30]
[340901731,1730046093048,-851.61,0.00027945,30]
[340901732,1730046093073,-500.0,0.00027945,30]
[340901733,1730046093098,-670.03,0.00027945,30]
[340901734,1730046093125,-500.0,0.00027945,30]
[340901735,1730046093150,-500.0,0.00027945,30]
[340901736,1730046093178,-772.97,0.00027945,30]
[340901737,1730046093208,-766.48,0.00027945,30]
[340901738,1730046093235,-500.0,0.00027945,30]
[340901739,1730046093263,-500.0,0.00027945,30]
[340901740,1730046093290,-500.0,0.00027945,30]
[340901741,1730046093317,-1608.87,0.00027945,30]
[340901742,1730046093344,-500.0,0.00027945,30]
[340901743,1730046093371,-1057.04,0.00027945,30]
[340901744,1730046093397,-500.0,0.00027945,30]
[340901745,1730046093426,-615.34,0.00027945,30]
[340901746,1730046093452,-556.8862278,0.00027945,30]
[340901747,1730046093478,-549.76,0.00027945,30]
[340901748,1730046093505,-586.84,0.00027945,30]
[340901749,1730046093531,-957.27,0.00027945,30]
[340901750,1730046093557,-1261.42,0.00027945,30]
[340901751,1730046093584,-500.0,0.00027945,30]
[340901752,1730046093634,-500.0,0.00027945,30]
[340901753,1730046093667,-802.4,0.00027945,30]
[340901754,1730046093695,-816.41,0.00027945,30]
[340901755,1730046093722,-500.0,0.00027945,30]
[340901756,1730046093749,-500.0,0.00027945,30]
[340901757,1730046093777,-500.0,0.00027945,30]
[340901758,1730046093804,-500.0,0.00027945,30]
[340901759,1730046093831,-500.0,0.00027945,30]
[340901760,1730046093859,-500.0,0.00027945,30]
[340901761,1730046093887,-500.0,0.00027945,30]
[340901762,1730046093913,-569.20017962,0.00027945,30]
[340901763,1730046093944,-500.0,0.00027945,30]
[340901764,1730046093971,-500.0,0.00027945,30]
[340901765,1730046093997,-1724.82,0.00027945,30]
[340901766,1730046094023,-2470.19,0.00027945,30]
[340901767,1730046094050,-784.13,0.00027945,30]
[340901768,1730046094078,-1423.13,0.00027945,30]
[340901769,1730046094105,-1620.61,0.00027945,30]
[340901770,1730046094132,-517.19900121,0.00027945,30]
[340901771,1730046094159,-823.61,0.00027945,30]
[340901772,1730046094187,-500.0,0.00027945,30]
[340901773,1730046094216,-850.45,0.00027945,30]
[340901774,1730046094245,-860.0,0.00027945,30]
[340901775,1730046094271,-1238.43,0.00027945,30]
[340901776,1730046094297,-810.51,0.00027945,30]
[340901777,1730046094328,-615.0,0.00027945,30]
[340901778,1730046094356,-500.0,0.00027945,30]
[340901779,1730046094384,-800.46,0.00027945,30]
[340901780,1730046094416,-1642.87,0.00027945,30]
[340901781,1730046094443,-500.0,0.00027945,30]
[340901782,1730046094472,-500.0,0.00027945,30]
[340901783,1730046094501,-518.47,0.00027945,30]
[340901784,1730046094528,-1437.1,0.00027945,30]
[340901785,1730046094556,-500.0,0.00027945,30]
[340901786,1730046094584,-500.0,0.00027945,30]
[340901787,1730046094611,-500.0,0.00027945,30]
[340901788,1730046094638,-500.0,0.00027945,30]
[340901789,1730046094664,-500.0,0.00027945,30]
[340901790,1730046094692,-1523.57,0.00027945,30]
[340901791,1730046094720,-500.0,0.00027945,30]
[340901792,1730046094749,-500.0,0.00027945,30]
[340901793,1730046094777,-2893.61,0.00027945,30]
[340901794,1730046094804,-2303.95,0.00027945,30]
[340901795,1730046094830,-798.22,0.00027945,30]
[340901796,1730046094858,-500.0,0.00027945,30]
[340901797,1730046095045,-771.86,0.00027945,30]
[340901798,1730046095073,-2509.65,0.00027945,30]
[340901799,1730046095100,-500.0,0.00027945,30]
[340901800,1730046095126,-1092.14,0.00027945,30]
[340901801,1730046095153,-500.0,0.00027945,30]
[340901802,1730046095180,-500.0,0.00027945,30]
[340901803,1730046095207,-769.7,0.00027945,30]
[340901804,1730046095234,-867.87,0.00027945,30]
[340901805,1730046095262,-500.0,0.00027945,30]
[340901806,1730046095289,-617.82,0.00027945,30]
[340901807,1730046095315,-626.06,0.00027945,30]
[340901808,1730046095342,-615.26,0.00027945,30]
[340901809,1730046095369,-641.35,0.00027945,30]
[340901810,1730046095396,-583.72629414,0.00027945,30]
[340901811,1730046095420,-681.05,0.00027945,30]
[340901812,1730046095446,-500.0,0.00027945,30]
[340901813,1730046095473,-507.28,0.00027945,30]
[340901814,1730046095499,-500.0,0.00027945,30]
[340901815,1730046095524,-172.75076407,0.00027945,30]
[340901816,1730046095549,-2079.27,0.00027945,30]
[340901817,1730046095575,-882.32,0.00027945,30]
[340901818,1730046095600,-220.43541759,0.00027945,30]
[340901819,1730046095626,-742.18,0.00027945,30]
[340901820,1730046095651,-1041.08,0.00027945,30]
[340901821,1730046095679,-500.0,0.00027945,30]
[340901822,1730046095704,-1211.33,0.00027945,30]
[340901823,1730046095729,-500.0,0.00027945,30]
[340901824,1730046095754,-960.14,0.00027945,30]
[340901825,1730046095779,-500.0,0.00027945,30]
[340901826,1730046095805,-702.7,0.00027945,30]
[340901827,1730046095831,-551.57,0.00027945,30]
[340901828,1730046095856,-947.66,0.00027945,30]
[340901829,1730046095881,-726.92,0.00027945,30]
[340901830,1730046095907,-500.0,0.00027945,30]
[340901831,1730046095933,-570.26,0.00027945,30]
[340901832,1730046095961,-1041.16,0.00027945,30]
[340901833,1730046095989,-909.24,0.00027945,30]
[340901834,1730046096016,-500.0,0.00027945,30]
[340901835,1730046096042,-712.81,0.00027945,30]
[340901836,1730046096067,-1412.27,0.00027945,30]
[340901837,1730046096093,-1788.69,0.00027945,30]
[340901838,1730046096119,-720.31,0.00027945,30]
[340901839,1730046096146,-945.4,0.00027945,30]
[340901840,1730046096170,-500.0,0.00027945,30]
[340901841,1730046096198,-500.0,0.00027945,30]
[340901842,1730046096227,-653.89,0.00027945,30]
[340901843,1730046096253,-1548.3,0.00027945,30]
[340901844,1730046096280,-500.0,0.00027945,30]
[340901845,1730046096307,-500.0,0.00027945,30]
[340901846,1730046096333,-1846.63,0.00027945,30]
[340901847,1730046096362,-511.57,0.00027945,30]
[340901848,1730046096387,-500.0,0.00027945,30]
[340901849,1730046096414,-1161.98,0.00027945,30]
[340901850,1730046096440,-500.0,0.00027945,30]
[340901851,1730046096467,-500.0,0.00027945,30]
[340901852,1730046096493,-808.46,0.00027945,30]
[340901853,1730046096520,-897.0,0.00027945,30]
[340901854,1730046096548,-1191.74,0.00027945,30]
[340901855,1730046096576,-777.92,0.00027945,30]
[340901856,1730046096602,-500.0,0.00027945,30]
[340901857,1730046096627,-237.40039623,0.00027945,30]
[340901858,1730046096653,-2328.28,0.00027945,30]
[340901859,1730046096681,-1055.98,0.00027945,30]
[340901860,1730046096706,-500.0,0.00027945,30]
[340901861,1730046096733,-500.0,0.00027945,30]
[340901862,1730046096757,-1801.73,0.00027945,30]
[340901863,1730046096782,-669.35,0.00027945,30]
[340901864,1730046096808,-3087.86,0.00027945,30]
[340901865,1730046096833,-951.03,0.00027945,30]
[340901866,1730046096860,-1329.48,0.00027945,30]
[340901867,1730046096887,-649.77,0.00027945,30]
[340901868,1730046096912,-513.71,0.00027945,30]
[340901869,1730046096938,-500.0,0.00027945,30]
[340901870,1730046096963,-500.0,0.00027945,30]
[340901871,1730046096987,-1082.45,0.00027945,30]
[340901872,1730046097230,-2807.81,0.00027945,30]
[340901873,1730046097260,-1066.42,0.00027945,30]
[340901874,1730046097285,-500.0,0.00027945,30]
[340901875,1730046097310,-614.34805981,0.00027945,30]
[340901876,1730046097335,-927.22,0.00027945,30]
[340901877,1730046097362,-5482.08,0.00027945,30]
[340901878,1730046097387,-562.94,0.00027945,30]
[340901879,1730046097412,-1006.89,0.00027945,30]
[340901880,1730046097437,-1369.37,0.00027945,30]
[340901881,1730046097462,-814.09,0.00027945,30]
[340901882,1730046097488,-451.33701027,0.00027945,30]
[340901883,1730046097513,-1205.44,0.00027945,30]
[340901884,1730046097539,-2966.53,0.00027945,30]
[340901885,1730046097564,-580.16,0.00027945,30]
[340901886,1730046097588,-2102.05,0.00027945,30]
[340901887,1730046097615,-908.39,0.00027945,30]
[340901888,1730046097643,-489.29627827,0.00027945,30]
[340901889,1730046097668,-500.0,0.00027945,30]
[340901890,1730046097692,-551.90998738,0.00027945,30]
[340901891,1730046097718,-9951.14,0.00027945,30]
[340901892,1730046097743,-1621.81,0.00027945,30]
[340901893,1730046097768,-931.23,0.00027945,30]
[340901894,1730046097793,-500.0,0.00027945,30]
[340901895,1730046097817,-1297.12,0.00027945,30]
[340901896,1730046097842,-500.0,0.00027945,30]
[340901897,1730046097866,-500.0,0.00027945,30]
[340901898,1730046097890,-848.89,0.00027945,30]
[340901899,1730046097916,-1653.1,0.00027945,30]
[340901900,1730046097943,-1793.09,0.00027945,30]
[340901901,1730046097971,-916.19,0.00027945,30]
[340901902,1730046097997,-2431.6,0.00027945,30]
[340901903,1730046098023,-1836.0,0.00027945,30]
[340901904,1730046098049,-873.66,0.00027945,30]
[340901905,1730046098074,-500.0,0.00027945,30]
[340901906,1730046098099,-620.5,0.00027945,30]
[340901907,1730046098125,-1667.35,0.00027945,30]
[340901908,1730046098150,-1075.5,0.00027945,30]
[340901909,1730046098176,-559.00963074,0.00027945,30]
[340901910,1730046098203,-1451.07,0.00027945,30]
[340901911,1730046098228,-1954.49,0.00027945,30]
[340901912,1730046098254,-6095.81,0.00027945,30]
[340901913,1730046098279,-500.0,0.00027945,30]
[340901914,1730046098304,-698.69,0.00027945,30]
[340901915,1730046098328,-778.1,0.00027945,30]
[340901916,1730046098354,-1654.97,0.00027945,30]
[340901917,1730046098380,-2746.61,0.00027945,30]
[340901918,1730046098405,-1229.42,0.00027945,30]
[340901919,1730046098434,-1395.07,0.00027945,30]
[340901920,1730046098459,-500.0,0.00027945,30]
[340901921,1730046098484,-897.79,0.00027945,30]
[340901922,1730046098509,-500.0,0.00027945,30]
[340901923,1730046098534,-557.31,0.00027945,30]
[340901924,1730046098561,-719.28,0.00027945,30]
[340901925,1730046098587,-500.0,0.00027945,30]
[340901926,1730046098613,-722.3,0.00027945,30]
[340901927,1730046098640,-500.0,0.00027945,30]
[340901928,1730046098668,-500.0,0.00027945,30]
[340901929,1730046098696,-31392.8,0.00027945,30]
[340901930,1730046098722,-500.0,0.00027945,30]
[340901931,1730046098747,-615.71,0.00027945,30]
[340901932,1730046098774,-1645.21,0.00027945,30]
[340901933,1730046098799,-500.0,0.00027945,30]
[340901934,1730046098824,-709.72,0.00027945,30]
[340901935,1730046098849,-842.67,0.00027945,30]
[340901936,1730046098875,-3073.17,0.00027945,30]
[340901937,1730046098901,-1050.62,0.00027945,30]
[340901938,1730046098927,-630.66032009,0.00027945,30]
[340901939,1730046098953,-1277.77,0.00027945,30]
[340901940,1730046098979,-659.67,0.00027945,30]
[340901941,1730046099004,-810.39,0.00027945,30]
[340901942,1730046099029,-593.72,0.00027945,30]
[340901943,1730046099055,-795.67,0.00027945,30]
[340901944,1730046099080,-500.0,0.00027945,30]
[340901945,1730046099105,-500.0,0.00027945,30]
[340901946,1730046099131,-1081.77,0.00027945,30]
[340901947,1730046099155,-500.0,0.00027945,30]
[340901948,1730046099181,-1141.22,0.00027945,30]
[340901949,1730046099207,-500.0,0.00027945,30]
[340901950,1730046099233,-798.2,0.00027945,30]
[340901951,1730046099258,-632.44,0.00027945,30]
[340901952,1730046099286,-2219.19,0.00027945,30]
[340901953,1730046099310,-500.0,0.00027945,30]
[340901954,1730046099334,-500.0,0.00027945,30]
[340901955,1730046099360,-717.21,0.00027945,30]
[340901956,1730046099386,-247.66995874,0.00027945,30]
[340901957,1730046099414,-500.0,0.00027945,30]
[340901958,1730046099439,-500.0,0.00027945,30]
[340901959,1730046099463,-500.0,0.00027945,30]
[340901960,1730046099493,-1620.78,0.00027945,30]
[340901961,1730046099527,-500.0,0.00027945,30]
[340901962,1730046099560,-1054.63,0.00027945,30]
[340901963,1730046099588,-984.29,0.00027945,30]
[340901964,1730046099618,-1099.54,0.00027945,30]
[340901965,1730046099647,-1257.44,0.00027945,30]
[340901966,1730046099681,-793.9,0.00027945,30]
[340901967,1730046099714,-500.0,0.00027945,30]
[340901968,1730046099745,-559.54159987,0.00027945,30]
[340901969,1730046099779,-500.0,0.00027945,30]
[340901970,1730046099809,-4538.49,0.00027945,30]
[340901971,1730046099840,-500.0,0.00027945,30]
[340901972,1730046099869,-1232.97,0.00027945,30]
[340901973,1730046099902,-3153.74,0.00027945,30]
[340901974,1730046099936,-500.0,0.00028219,30]
[340901975,1730046099966,-500.0,0.00028219,30]
[340901976,1730046099994,-933.79,0.00028219,30]
[340901977,1730046100024,-500.0,0.00028219,30]
[340901978,1730046100054,-500.0,0.00028219,30]
[340901979,1730046100089,-613.97,0.00028219,30]
[340901980,1730046100121,-555.69981785,0.00028219,30]
[340901981,1730046100153,-500.0,0.00028219,30]
[340901982,1730046100186,-791.2,0.00028219,30]
[340901983,1730046100221,-851.61,0.00028219,30]
[340901984,1730046100248,-500.0,0.00028219,30]
[340901985,1730046100274,-670.03,0.00028219,30]
[340901986,1730046100302,-500.0,0.00028219,30]
[340901987,1730046100332,-500.0,0.00028219,30]
[340901988,1730046100362,-772.97,0.00028219,30]
[340901989,1730046100388,-766.48,0.00028219,30]
[340901990,1730046100420,-212.99889344,0.00028219,30]
[340901991,1730046100450,-500.0,0.00028219,30]
[340901992,1730046100478,-500.0,0.00028219,30]
[340901993,1730046100505,-1608.87,0.00028219,30]
[340901994,1730046100532,-500.0,0.00028219,30]
[340901995,1730046100560,-1057.04,0.00028219,30]
[340901996,1730046100588,-500.0,0.00028219,30]
[340901997,1730046100617,-615.34,0.00028219,30]
[340901998,1730046100644,-549.76,0.00028219,30]
[340901999,1730046100674,-586.84,0.00028219,30]
[340902000,1730046100703,-957.27,0.00028219,30]
[340902001,1730046100730,-1261.42,0.00028219,30]
[340902002,1730046100757,-500.0,0.00028219,30]
[340902003,1730046100785,-500.0,0.00028219,30]
[340902004,1730046100813,-802.4,0.00028219,30]
[340902005,1730046100840,-816.41,0.00028219,30]
[340902006,1730046100867,-500.0,0.00028219,30]
[340902007,1730046100893,-500.0,0.00028219,30]
[340902008,1730046100922,-500.0,0.00028219,30]
[340902009,1730046100949,-500.0,0.00028219,30]
[340902010,1730046100977,-409.29681377,0.00028219,30]
[340902011,1730046101006,-500.0,0.00028219,30]
[340902012,1730046101033,-500.0,0.00028219,30]
[340902013,1730046101061,-500.0,0.00028219,30]
[340902014,1730046101089,-500.0,0.00028219,30]
[340902015,1730046101116,-1724.82,0.00028219,30]
[340902016,1730046101144,-2470.19,0.00028219,30]
[340902017,1730046101172,-784.13,0.00028219,30]
[340902018,1730046101202,-1423.13,0.00028219,30]
[340902019,1730046101232,-1620.61,0.00028219,30]
[340902020,1730046101266,-823.61,0.00028219,30]
[340902021,1730046101296,-500.0,0.00028219,30]
[340902022,1730046101326,-850.45,0.00028219,30]
[340902023,1730046101355,-860.0,0.00028219,30]
[340902024,1730046101384,-1238.43,0.00028219,30]
[340902025,1730046101415,-810.51,0.00028219,30]
[340902026,1730046101444,-615.0,0.00028219,30]
[340902027,1730046101473,-500.0,0.00028219,30]
[340902028,1730046101503,-800.46,0.00028219,30]
[340902029,1730046101532,-1642.87,0.00028219,30]
[340902030,1730046101561,-500.0,0.00028219,30]
[340902031,1730046101591,-500.0,0.00028219,30]
[340902032,1730046101621,-518.47,0.00028219,30]
[340902033,1730046101650,-1437.1,0.00028219,30]
[340902034,1730046101681,-500.0,0.00028219,30]
[340902035,1730046101711,-500.0,0.00028219,30]
[340902036,1730046101741,-500.0,0.00028219,30]
[340902037,1730046101769,-500.0,0.00028219,30]
[340902038,1730046101797,-500.0,0.00028219,30]
[340902039,1730046101827,-1523.57,0.00028219,30]
[340902040,1730046101858,-500.0,0.00028219,30]
[340902041,1730046101886,-500.0,0.00028219,30]
[340902042,1730046101917,-2893.61,0.00028219,30]
[340902043,1730046101944,-2303.95,0.00028219,30]
[340902044,1730046101973,-798.22,0.00028219,30]
[340902045,1730046102002,-771.86,0.00028219,30]
[340902046,1730046102311,-500.0,0.00028219,30]
[340902047,1730046102350,-2509.65,0.00028219,30]
[340902048,1730046102378,-614.61078465,0.00028219,30]
[340902049,1730046102406,-1092.14,0.00028219,30]
[340902050,1730046102433,-500.0,0.00028219,30]
[340902051,1730046102461,-500.0,0.00028219,30]
[340902052,1730046102488,-769.7,0.00028219,30]
[340902053,1730046102514,-867.87,0.00028219,30]
[340902054,1730046102540,-500.0,0.00028219,30]
[340902055,1730046102568,-617.82,0.00028219,30]
[340902056,1730046102597,-626.06,0.00028219,30]
[340902057,1730046102623,-615.26,0.00028219,30]
[340902058,1730046102648,-641.35,0.00028219,30]
[340902059,1730046102674,-681.05,0.00028219,30]
[340902060,1730046102700,-235.51299284,0.00028219,30]
[340902061,1730046102726,-507.28,0.00028219,30]
[340902062,1730046102753,-500.0,0.00028219,30]
[340902063,1730046102778,-2079.27,0.00028219,30]
[340902064,1730046102805,-882.32,0.00028219,30]
[340902065,1730046102830,-742.18,0.00028219,30]
[340902066,1730046102855,-1041.08,0.00028219,30]
[340902067,1730046102881,-500.0,0.00028219,30]
[340902068,1730046102906,-1211.33,0.00028219,30]
[340902069,1730046102935,-500.0,0.00028219,30]
[340902070,1730046102960,-960.14,0.00028219,30]
[340902071,1730046102985,-500.0,0.00028219,30]
[340902072,1730046103010,-702.7,0.00028219,30]
[340902073,1730046103035,-551.57,0.00028219,30]